bitfinex-derivatives/quotes_ETHF0:USTF0_20250704
["timestamp","ask_amount","ask_price","bid_price","bid_amount"]
[1751613313998,6.68625362,2553.9,2553.7,0.78289]
[1751613314407,0.78288,2553.8,2553.7,0.78291]
[1751613314608,0.78291,2553.7,2553.6,0.78292]
[1751613314809,0.78317,2552.9,2551.9,9.77376992]
[1751613315010,5.90337362,2552.4,2552.3,6.25392394]
[1751613315200,5.90337362,2552.4,2552.3,0.78334]
[1751613315608,3.2078,2552.7,2552.6,0.78325]
[1751613316003,3.2078,2553.0,2552.9,0.78316]
[1751613316809,3.2078,2553.0,2552.8,0.78317]
[1751613317110,3.99096,2553.0,2552.7,1.45159]
[1751613317305,5.61751374,2552.8,2552.6,0.78322]
[1751613317498,5.61751374,2552.8,2552.6,0.78324]
[1751613317709,6.40070374,2552.8,2552.6,0.78324]
[1751613317910,0.78322,2552.7,2552.5,0.78326]
[1751613318105,6.40072374,2552.8,2552.5,0.78326]
[1751613318310,0.78326,2552.6,2552.4,1.3314]
[1751613318510,3.99103,2552.7,2552.4,1.44628]
[1751613318713,3.99103,2552.7,2552.4,1.4463]
[1751613319107,3.99103,2552.7,2552.5,0.78328]
[1751613319412,3.99103,2552.7,2552.4,1.44629]
[1751613319610,3.99103,2552.7,2552.5,0.78328]
[1751613319810,3.2078,2552.7,2552.5,0.78327]
[1751613320311,3.2078,2552.7,2552.5,0.78326]
[1751613320614,3.2078,2552.7,2552.6,0.78325]
[1751613323314,36.77414,2553.0,2552.6,0.78325]
[1751613323315,3.2078,2553.0,2552.6,1.95813]
[1751613323507,3.2078,2553.0,2552.9,0.78316]
[1751613323908,0.78318,2552.9,2552.7,0.78321]
[1751613324109,5.61751374,2552.8,2552.7,0.78321]
[1751613324612,5.61751374,2552.8,2552.6,0.78323]
[1751613324911,6.40070374,2552.8,2552.6,0.78323]
[1751613326015,0.78322,2552.7,2552.6,0.78323]
[1751613326217,6.40072374,2552.8,2552.6,0.78323]
[1751613326717,5.61751374,2552.8,2552.7,0.78322]
[1751613326912,9.60850374,2552.8,2552.7,0.78322]
[1751613327312,8.82531374,2552.8,2552.7,0.78322]
[1751613327918,8.82531374,2552.8,2552.6,0.78324]
[1751613328518,0.78322,2552.7,2552.6,0.78324]
[1751613329518,9.60851374,2552.8,2552.6,0.78324]
[1751613330018,8.82531374,2552.8,2552.7,0.78322]
[1751613330919,9.60850374,2552.8,2552.7,0.78322]
[1751613331118,3.2078,2552.8,2552.7,0.78322]
[1751613331319,9.60850374,2552.8,2552.7,0.78322]
[1751613332321,8.82531374,2552.8,2552.7,0.78322]
[1751613332524,9.60850374,2552.8,2552.7,0.78322]
[1751613333324,0.78322,2552.7,2552.6,0.78323]
[1751613333725,1.48752,2552.7,2552.6,0.78323]
[1751613334527,0.7043,2552.7,2552.6,0.78323]
[1751613334721,0.78325,2552.6,2552.5,0.78326]
[1751613334918,5.61751374,2552.6,2552.4,1.9951]
[1751613335122,6.40078374,2552.6,2552.5,0.78328]
[1751613336026,0.78328,2552.5,2552.4,1.4463]
[1751613336228,3.99108,2552.5,2552.4,1.4463]
[1751613337828,0.78331,2552.4,2552.3,0.78332]
[1751613338530,3.2078,2552.5,2552.1,1.9881]
[1751613338731,6.31541374,2552.3,2552.2,0.78337]
[1751613339632,6.31541374,2552.3,2552.1,0.7014]
[1751613339827,0.78337,2552.2,2552.1,0.78339]
[1751613340020,6.31541374,2552.3,2552.1,0.78339]
[1751613340225,7.09876374,2552.3,2552.2,0.78337]
[1751613340425,7.09876374,2552.3,2552.1,0.78338]
[1751613340626,0.78337,2552.2,2552.1,0.78338]
[1751613341332,7.09877374,2552.3,2552.1,0.78338]
[1751613341832,1.48126,2552.3,2552.2,0.78337]
[1751613342029,4.18377403,2552.3,2552.2,0.78337]
[1751613342631,3.40041403,2552.3,2552.2,0.78337]
[1751613343033,4.18375403,2552.3,2552.2,0.78337]
[1751613343230,0.78338,2552.2,2552.1,0.78338]
[1751613343535,4.18377403,2552.3,2552.2,0.78337]
[1751613344428,7.39157403,2552.3,2552.2,0.78337]
[1751613344930,6.60821403,2552.3,2552.2,0.78337]
[1751613351432,7.39155403,2552.3,2552.2,0.78337]
[1751613352242,4.18375403,2552.3,2552.2,0.78337]
[1751613352539,7.39155403,2552.3,2552.2,0.78337]
[1751613353534,6.60821403,2552.3,2552.2,0.78337]
[1751613354236,5.91031403,2552.3,2552.2,0.78337]
[1751613356239,5.91031403,2552.6,2552.1,5.16628]
[1751613356434,2.70251403,2552.4,2552.3,0.78334]
[1751613356639,2.70251403,2552.4,2552.3,2.19024]
[1751613356839,3.2078,2552.6,2552.5,0.78328]
[1751613357041,5.91031403,2552.6,2552.5,0.78328]
[1751613359639,3.2078,2552.6,2552.5,0.78328]
[1751613359846,5.91031403,2552.6,2552.5,0.78328]
[1751613364342,3.2078,2552.6,2552.5,0.78328]
[1751613365046,2.70251403,2552.9,2552.8,0.78319]
[1751613365747,3.2078,2553.0,2552.9,0.78316]
[1751613366350,3.2078,2553.7,2553.6,0.78294]
[1751613366551,7.09303374,2553.7,2553.6,0.78294]
[1751613367049,5.91031403,2553.7,2553.6,0.78294]
[1751613368147,6.69322403,2553.7,2553.6,0.78294]
[1751613368546,5.91031403,2553.7,2553.6,0.78294]
[1751613371448,3.2078,2553.7,2553.6,0.78294]
[1751613371848,5.91031403,2553.7,2553.6,0.78294]
[1751613375053,2.70251403,2553.7,2553.6,0.78294]
[1751613375952,1.3735,2553.9,2553.8,0.78288]
[1751613376148,5.91031403,2554.0,2553.9,0.78285]
[1751613376347,2.70251403,2554.0,2553.9,0.78285]
[1751613377252,6.18787806,2554.0,2553.6,3.2078]
[1751613377555,3.48536403,2554.0,2553.9,0.78285]
[1751613377856,0.78287,2553.9,2553.7,0.78289]
[1751613378354,3.48535403,2554.0,2553.8,0.78288]
[1751613378554,6.18786806,2554.0,2553.8,0.78288]
[1751613378848,6.18786806,2554.0,2553.9,0.78285]
[1751613379053,3.48535403,2554.0,2553.9,0.78285]
[1751613380055,6.18786806,2554.0,2553.9,0.78285]
[1751613380760,3.48535403,2554.0,2553.9,0.78285]
[1751613381055,2.70251403,2554.0,2553.9,0.78285]
[1751613381854,0.78287,2553.9,2553.8,0.78287]
[1751613383155,0.7829,2553.8,2553.7,0.78289]
[1751613383361,0.78293,2553.7,2553.6,0.78292]
[1751613383658,2.70251403,2553.7,2553.6,0.78292]
[1751613384154,3.34611403,2553.7,2553.6,0.78292]
[1751613385145,4.12902403,2553.7,2553.6,0.78292]
[1751613386154,3.34611403,2553.7,2553.5,0.78295]
[1751613386357,2.70251403,2553.6,2553.5,0.78297]
[1751613387957,3.34611403,2553.7,2553.6,0.78294]
[1751613390256,4.12902403,2553.7,2553.6,0.78294]
[1751613390457,3.34611403,2553.7,2553.6,0.78294]
[1751613391357,2.70251403,2553.8,2553.6,3.2078]
[1751613391656,2.70251403,2553.8,2553.7,0.78291]
[1751613394754,2.70251403,2553.8,2553.7,3.99071]
[1751613395054,0.6425,2554.2,2553.7,3.99071]
[1751613395055,2.70251403,2554.0,2553.7,3.99071]
[1751613395250,2.70251403,2554.0,2553.8,1.9475]
[1751613395458,2.70251403,2554.0,2553.9,0.78285]
[1751613395654,2.70251403,2554.0,2553.9,2.07855]
[1751613396052,2.70251403,2554.2,2554.1,0.78279]
[1751613402952,3.2078,2554.3,2554.2,0.78276]
[1751613403161,3.2078,2554.3,2554.0,1.2957]
[1751613403162,5.91031403,2554.6,2554.5,0.78266]
[1751613403455,7.09016334,2554.6,2554.5,0.78266]
[1751613407865,7.87279334,2554.6,2554.5,0.78266]
[1751613408459,7.09016334,2554.6,2554.2,0.6945]
[1751613408661,2.70251403,2554.3,2553.7,1.95724]
[1751613408871,0.6745,2554.2,2554.1,0.78279]
[1751613410166,3.37701403,2554.2,2554.1,0.78279]
[1751613413472,3.37701403,2554.2,2553.8,0.6413]
[1751613413671,2.70251403,2553.9,2553.8,0.78286]
[1751613413978,3.48536403,2553.9,2553.7,0.78289]
[1751613414171,1.3305,2553.8,2553.7,0.78289]
[1751613415574,2.11338,2553.8,2553.7,0.78289]
[1751613417485,1.3305,2553.8,2553.7,0.78289]
[1751613417686,4.81589403,2553.8,2553.7,0.78289]
[1751613419389,4.03301403,2553.8,2553.7,0.78289]
[1751613419583,4.81589403,2553.8,2553.7,0.78289]
[1751613420387,4.03301403,2553.8,2553.7,0.78289]
[1751613420581,3.38061403,2553.8,2553.7,0.78289]
[1751613420781,3.38061403,2553.8,2553.7,0.78291]
[1751613421087,4.16350403,2553.8,2553.6,0.78294]
[1751613421280,5.55810403,2553.8,2553.6,0.78294]
[1751613421480,0.78292,2553.7,2553.5,0.78295]
[1751613421685,2.70251403,2553.6,2553.5,0.78295]
[1751613423484,2.70251403,2553.6,2553.4,0.78298]
[1751613423689,2.70251403,2553.5,2553.2,0.659]
[1751613423887,2.70251403,2553.5,2553.4,0.783]
[1751613425581,2.70251403,2554.1,2553.8,0.78288]
[1751613425782,3.2078,2554.2,2554.1,0.78279]
[1751613425985,6.58711403,2554.5,2554.4,0.78269]
[1751613426184,4.38589062,2554.5,2554.4,0.78269]
[1751613426488,3.2078,2554.5,2554.4,0.78269]
[1751613427394,3.2078,2554.5,2554.4,2.76529]
[1751613427693,2.70251403,2554.7,2554.6,0.78263]
[1751613427886,5.91031403,2554.7,2554.6,0.78263]
[1751613431195,6.69293403,2554.7,2554.5,0.78265]
[1751613431494,2.70251403,2554.6,2554.5,0.78265]
[1751613433692,2.70251403,2554.6,2554.5,2.18255]
[1751613434891,3.2078,2554.7,2554.5,2.18255]
[1751613434892,3.2078,2554.7,2554.6,0.78263]
[1751613435090,67.441,2555.3,2554.8,0.78257]
[1751613435091,2.70251403,2554.9,2554.8,0.78257]
[1751613445110,2.70251403,2555.1,2554.7,1.9565]
[1751613445306,2.70251403,2555.1,2555.0,0.78251]
[1751613448608,3.2078,2555.3,2555.2,0.78245]
[1751613448810,3.2078,2555.6,2555.5,0.78233]
[1751613449005,5.91031403,2555.6,2555.5,0.78233]
[1751613449706,6.69264403,2555.6,2555.4,0.78237]
[1751613449906,3.39401403,2555.5,2555.4,0.78237]
[1751613450510,4.17639403,2555.5,2555.3,0.7824]
[1751613450710,2.70251403,2555.4,2555.3,0.7824]
[1751613451509,3.48490403,2555.4,2555.3,0.7824]
[1751613451710,2.70251403,2555.4,2555.3,0.7824]
[1751613453012,0.6915,2555.5,2555.4,0.78239]
[1751613453208,3.39401403,2555.5,2555.4,0.78239]
[1751613454617,4.78811403,2555.5,2555.4,0.78239]
[1751613455115,5.57047403,2555.5,2555.4,0.78239]
[1751613456327,0.7824,2555.4,2555.3,0.7824]
[1751613456512,4.81371403,2555.4,2555.3,0.7824]
[1751613457416,0.6915,2555.5,2555.4,0.78239]
[1751613457616,3.39401403,2555.5,2555.4,0.78239]
[1751613458919,4.17637403,2555.5,2555.4,0.78239]
[1751613460018,4.68091403,2555.5,2555.4,0.78239]
[1751613461523,5.85047471,2555.5,2555.4,0.78239]
[1751613462419,6.63283471,2555.5,2555.4,0.78239]
[1751613462921,5.85047471,2555.5,2555.4,0.78239]
[1751613463922,6.63283471,2555.5,2555.4,0.78239]
[1751613464519,5.85047471,2555.5,2555.4,0.78239]
[1751613466624,6.63283471,2555.5,2555.4,0.78239]
[1751613466924,5.85047471,2555.5,2555.4,0.78239]
[1751613467723,4.68091403,2555.5,2555.4,0.78239]
[1751613467920,6.63375772,2555.5,2555.4,0.78239]
[1751613468121,5.85139772,2555.5,2555.4,0.78239]
[1751613468323,4.56449772,2555.5,2555.4,0.78239]
[1751613469122,3.39401403,2555.5,2555.4,0.78239]
[1751613472824,4.17637403,2555.5,2555.4,0.78239]
[1751613473025,3.39401403,2555.5,2555.4,0.78239]
[1751613475929,4.17637403,2555.5,2555.4,0.78239]
[1751613477036,3.39401403,2555.5,2555.4,0.78239]
[1751613477941,4.17637403,2555.5,2555.4,0.78239]
[1751613478439,3.39401403,2555.5,2555.4,0.78239]
[1751613479744,4.17637403,2555.5,2555.4,0.78239]
[1751613480837,1.95598,2555.4,2555.0,0.6935]
[1751613481143,6.69277403,2555.2,2555.1,0.78248]
[1751613481536,5.91031403,2555.2,2554.8,0.6766]
[1751613481742,5.91031403,2555.2,2554.6,1.47543]
[1751613481743,0.7826,2554.7,2554.6,1.47543]
[1751613481941,0.7826,2554.7,2554.6,0.78263]
[1751613481942,3.48511403,2554.7,2554.6,0.78263]
[1751613482143,2.70251403,2554.7,2554.4,0.6928]
[1751613482343,0.78269,2554.4,2554.2,3.99054]
[1751613482541,3.48526403,2554.3,2553.9,0.6928]
[1751613482741,0.6667,2554.2,2554.1,0.78277]
[1751613483043,3.36921403,2554.2,2554.0,0.7828]
[1751613483248,2.70251403,2554.1,2554.0,0.7828]
[1751613484042,3.48530403,2554.1,2554.0,0.7828]
[1751613484243,2.70251403,2554.1,2554.0,0.7828]
[1751613484440,3.48530403,2554.1,2553.9,2.80623]
[1751613484841,2.70251403,2554.1,2554.0,0.78282]
[1751613485145,3.48530403,2554.1,2554.0,0.78282]
[1751613485644,2.70251403,2554.1,2554.0,0.78282]
[1751613485943,3.48530403,2554.1,2553.9,2.0234]
[1751613486143,3.48530403,2554.1,2553.9,1.47564]
[1751613486442,3.48530403,2554.1,2554.0,0.78282]
[1751613486642,3.48530403,2554.1,2553.9,1.47563]
[1751613487145,3.48530403,2554.1,2554.0,0.78282]
[1751613487546,2.70251403,2554.1,2554.0,0.78282]
[1751613488641,12.36203806,2554.1,2553.4,3.2078]
[1751613488850,2.70251403,2553.5,2553.3,0.657]
[1751613489038,2.70251403,2553.4,2553.0,2.0091]
[1751613489243,5.91031403,2553.2,2552.7,3.991]
[1751613489541,2.70251403,2552.8,2552.7,3.99102]
[1751613489741,3.48570403,2552.8,2552.7,3.2078]
[1751613489941,0.78323,2552.7,2552.5,1.46386]
[1751613490139,3.48576403,2552.6,2552.5,0.6806]
[1751613490446,3.48577403,2552.6,2552.4,0.78328]
[1751613490744,2.70251403,2552.6,2552.5,0.78328]
[1751613490948,0.7833,2552.5,2552.3,6.00023]
[1751613491246,2.70251403,2552.4,2551.7,3.2078]
[1751613491441,2.70251403,2551.8,2550.9,3.2078]
[1751613491642,3.2078,2551.9,2551.2,3.2078]
[1751613491843,11.051,2552.2,2551.6,3.2078]
[1751613492038,8.82895583,2551.8,2551.5,0.6878]
[1751613492241,3.2078,2551.8,2551.7,0.78352]
[1751613492452,3.2078,2551.8,2551.5,0.6878]
[1751613492752,3.2078,2551.8,2551.5,1.47136]
[1751613492947,3.2078,2551.8,2551.6,0.78355]
[1751613493140,3.2078,2551.8,2551.7,0.78352]
[1751613493845,3.2078,2551.8,2551.6,0.78354]
[1751613494045,3.2078,2551.8,2551.7,0.78352]
[1751613494246,3.2078,2551.8,2551.6,0.78353]
[1751613494441,3.2078,2551.8,2551.6,1.3747]
[1751613494746,3.2078,2551.8,2551.5,0.6878]
[1751613494947,0.78352,2551.7,2551.5,0.6878]
[1751613495147,3.2078,2551.8,2551.3,0.6806]
[1751613495343,9.61246583,2551.8,2551.3,0.6806]
[1751613495548,8.82895583,2551.8,2551.5,0.78358]
[1751613496050,8.82895583,2551.8,2551.6,0.78355]
[1751613496343,8.82895583,2551.8,2550.2,1.95996]
[1751613496344,0.78372,2551.1,2550.2,1.95996]
[1751613496540,5.62115583,2550.9,2550.8,0.78379]
[1751613496744,40.8,2551.0,2550.9,0.78377]
[1751613496946,40.8,2551.0,2550.7,0.78381]
[1751613497250,46.42115583,2551.0,2550.8,0.78379]
[1751613497452,5.62115583,2551.0,2550.8,0.78379]
[1751613497751,5.62115583,2551.0,2550.5,4.5825]
[1751613497953,5.62115583,2551.0,2550.7,0.78382]
[1751613498145,6.40489583,2551.0,2550.7,0.78382]
[1751613498346,5.62115583,2551.0,2550.8,0.78379]
[1751613498546,5.62115583,2551.0,2550.9,0.78377]
[1751613499952,41.57415583,2551.0,2550.9,0.78377]
[1751613500454,41.57415583,2551.0,2550.8,0.78378]
[1751613500651,41.57415583,2551.0,2550.9,0.78377]
[1751613501149,5.62115583,2551.0,2550.9,0.78377]
[1751613501451,41.56515583,2551.0,2550.5,4.5825]
[1751613501753,5.62115583,2550.7,2550.5,1.3747]
[1751613501953,5.62115583,2550.7,2550.1,3.9143]
[1751613502153,5.62115583,2550.7,2550.1,1.4249]
[1751613502455,5.62115583,2550.7,2550.5,0.78388]
[1751613502651,5.62115583,2550.7,2550.1,1.4249]
[1751613502652,0.78394,2550.4,2550.1,2.2089]
[1751613502853,5.62115583,2550.2,2550.1,2.2089]
[1751613503153,5.62115583,2550.2,2549.6,1.9604]
[1751613503154,44.81895583,2550.2,2549.4,3.2078]
[1751613503451,3.2078,2549.3,2547.6,3.2078]
[1751613503650,3.2078,2548.7,2547.9,3.2078]
[1751613503850,8.82895583,2548.7,2547.7,1.96183]
[1751613504051,3.2078,2548.6,2547.6,3.2078]
[1751613504354,3.2078,2548.6,2548.5,0.78451]
[1751613504946,80.2988,2548.9,2548.7,0.78443]
[1751613505158,44.0078,2548.9,2548.7,0.78443]
[1751613505347,5.62115583,2548.8,2548.0,0.6998]
[1751613505547,8.82895583,2548.5,2547.9,3.2078]
[1751613505853,3.2078,2548.1,2547.3,0.6998]
[1751613506055,3.2078,2547.5,2547.4,1.2838]
[1751613506449,8.82895583,2547.5,2546.1,3.2078]
[1751613506652,3.2078,2547.1,2546.6,0.78507]
[1751613506847,3.2078,2547.1,2547.0,0.78497]
[1751613507052,3.2078,2547.4,2547.3,0.78486]
[1751613507250,3.2078,2547.9,2547.3,3.2078]
[1751613507554,3.2078,2547.9,2547.1,1.96229]
[1751613507555,3.2078,2547.9,2547.4,1.3316]
[1751613508052,3.2078,2547.9,2547.7,0.78473]
[1751613508356,3.2078,2547.9,2547.8,1.3316]
[1751613508553,3.2078,2547.9,2547.8,2.11632]
[1751613509756,3.2078,2547.9,2547.6,0.78476]
[1751613509956,3.2078,2547.9,2547.3,1.3719]
[1751613510148,3.2078,2547.9,2547.6,0.78478]
[1751613510352,3.2078,2547.9,2547.5,0.7848]
[1751613510658,3.2078,2547.6,2547.3,1.3719]
[1751613511360,3.9926,2547.6,2547.1,0.78492]
[1751613511659,36.594,2548.2,2547.2,0.7849]
[1751613511660,3.2078,2547.3,2547.2,0.7849]
[1751613511959,3.2078,2547.9,2547.3,1.96217]
[1751613512159,3.2078,2547.9,2547.4,1.3719]
[1751613512360,3.2078,2547.6,2547.5,0.78481]
[1751613513561,3.2078,2547.6,2547.4,2.15674]
[1751613514259,3.2078,2547.6,2547.5,0.78481]
[1751613514457,3.2078,2547.6,2547.0,1.3843]
[1751613514661,3.2078,2547.2,2547.1,0.78493]
[1751613515060,3.2078,2547.2,2547.1,5.78493]
[1751613515261,3.2078,2547.8,2547.1,5.0]
[1751613515463,3.2078,2547.8,2547.7,0.78475]
[1751613517466,3.2078,2547.8,2547.6,0.78476]
[1751613517667,3.2078,2547.8,2547.7,0.78475]
[1751613517867,3.2078,2547.8,2547.6,0.78477]
[1751613518061,3.2078,2547.8,2547.7,0.78475]
[1751613521069,3.2078,2547.8,2547.6,0.78477]
[1751613521367,3.2078,2547.8,2547.4,1.3835]
[1751613521564,3.2078,2547.8,2547.7,0.78475]
[1751613521769,3.26165734,2547.8,2547.7,0.78475]
[1751613522065,8.88281317,2547.8,2547.1,11.306]
[1751613522363,6.45975317,2547.8,2547.6,0.78478]
[1751613522570,4.6207,2547.7,2547.5,0.78479]
[1751613522770,0.05385734,2547.6,2547.5,0.78479]
[1751613523369,9.07766734,2547.6,2546.5,13.26979]
[1751613523558,3.2078,2547.2,2547.1,0.78493]
[1751613523763,3.2078,2547.6,2547.2,1.96221]
[1751613523967,3.2078,2547.6,2547.5,0.78481]
[1751613524761,3.2078,2547.6,2547.3,1.2869]
[1751613524762,3.2078,2548.0,2547.4,1.96207]
[1751613524961,3.2078,2548.0,2547.8,0.78469]
[1751613525161,3.99246,2548.0,2547.8,0.78469]
[1751613525363,3.2078,2548.0,2547.8,0.78469]
[1751613525667,3.2078,2548.0,2547.2,2.60525266]
[1751613525868,3.2078,2547.6,2547.4,0.78482]
[1751613526072,3.99258,2547.6,2547.4,0.78482]
[1751613526362,3.2078,2547.6,2547.5,0.78481]
[1751613526565,3.99259,2547.6,2547.2,0.78489]
[1751613526771,3.2078,2547.3,2547.2,0.78488]
[1751613526962,3.2078,2547.3,2546.7,11.308]
[1751613527268,3.99267,2547.3,2547.1,0.78493]
[1751613527468,3.2078,2547.3,2547.1,0.78493]
[1751613527669,0.78491,2547.2,2547.0,0.78494]
[1751613527870,0.78495,2547.1,2546.9,0.78498]
[1751613528369,3.2078,2547.3,2547.0,0.78494]
[1751613528569,3.99269,2547.3,2546.8,1.3637]
[1751613528764,3.2078,2547.3,2546.8,1.3637]
[1751613528968,3.99269,2547.3,2547.1,0.78492]
[1751613529165,0.78491,2547.2,2547.0,0.78495]
[1751613529369,0.78495,2547.1,2546.6,1.3652]
[1751613529569,0.78495,2547.1,2546.8,0.785]
[1751613529972,3.2078,2547.0,2546.9,0.78499]
[1751613530962,3.99277,2547.0,2546.8,0.78502]
[1751613531167,3.2078,2547.0,2546.5,14.5168]
[1751613531370,3.2078,2547.0,2546.9,0.785]
[1751613532168,3.99278,2547.0,2546.7,0.78503]
[1751613532369,3.9928,2547.0,2546.5,15.8582]
[1751613532578,3.2078,2547.0,2546.5,15.8582]
[1751613532872,3.99277,2547.0,2546.8,0.78501]
[1751613533071,3.2078,2547.0,2546.9,0.785]
[1751613533267,4.38802722,2547.0,2546.9,0.785]
[1751613533463,4.38802722,2547.0,2546.7,0.78503]
[1751613533668,1.18022722,2546.9,2546.5,1.3414]
[1751613533873,1.18310118,2546.8,2546.5,1.3414]
[1751613534073,3.2078,2547.0,2546.9,0.785]
[1751613534278,4.39087921,2547.0,2546.9,0.785]
[1751613535579,1.18307921,2547.0,2546.9,0.785]
[1751613535779,1.18307921,2547.0,2546.9,5.785]
[1751613536175,1.18307921,2547.0,2546.8,0.6786]
[1751613536381,1.18307921,2546.9,2546.8,0.78501]
[1751613539876,1.18307921,2546.9,2546.7,1.3572]
[1751613540075,1.18307921,2546.8,2546.6,0.78506]
[1751613540386,0.7851,2546.6,2546.2,1.9811]
[1751613540578,1.17597054,2546.5,2546.4,0.78514]
[1751613541078,1.96111054,2546.5,2546.3,0.78516]
[1751613541277,5.3004,2546.7,2546.3,0.78516]
[1751613541477,1.17569949,2546.6,2546.0,3.2078]
[1751613541686,1.17569949,2546.5,2546.4,0.78512]
[1751613542185,3.2078,2547.0,2546.9,0.785]
[1751613542581,3.99279,2547.0,2546.7,1.3043]
[1751613542778,3.2078,2547.0,2546.9,0.785]
[1751613542979,3.99277,2547.0,2546.8,0.78501]
[1751613543179,3.99277,2547.0,2546.8,0.78502]
[1751613543478,3.2078,2547.0,2546.5,1.9809]
[1751613543680,0.78504,2546.8,2546.5,0.7851]
[1751613544075,0.78504,2546.8,2546.6,0.78508]
[1751613544277,0.6845,2546.9,2546.8,0.78503]
[1751613544485,3.2078,2547.0,2546.5,1.96281]
[1751613544683,3.2078,2547.0,2546.6,1.3402]
[1751613544888,3.99277,2547.0,2546.7,0.78505]
[1751613545077,3.2078,2547.0,2546.8,0.78501]
[1751613545279,3.2078,2547.0,2546.9,0.785]
[1751613546387,3.2078,2547.0,2546.9,2.0745]
[1751613547989,3.2078,2547.0,2546.4,11.369]
[1751613548284,3.99278,2547.0,2546.8,0.78502]
[1751613548686,3.99278,2547.0,2546.7,0.78504]
[1751613548882,3.99278,2547.0,2546.8,0.78503]
[1751613549084,6.40616583,2546.9,2546.4,11.369]
[1751613549286,3.2078,2546.7,2546.6,0.78507]
[1751613550184,3.2078,2547.1,2546.6,1.96273]
[1751613550383,3.2078,2547.1,2546.7,1.3187]
[1751613550588,3.2078,2547.1,2547.0,0.78497]
[1751613552784,3.2078,2547.1,2547.0,5.78497]
[1751613553184,3.8896,2547.5,2547.4,0.78484]
[1751613553589,3.2078,2547.5,2547.4,0.78484]
[1751613554079,4.36558794,2547.5,2547.4,0.78484]
[1751613554489,3.2078,2547.5,2547.4,0.78484]
[1751613554687,3.8806,2547.9,2547.8,0.78472]
[1751613554884,3.8806,2547.9,2547.1,6.92665583]
[1751613554885,4.36582908,2547.9,2546.9,3.2078]
[1751613555084,3.2078,2547.6,2547.5,0.78481]
[1751613555290,3.8806,2547.9,2547.8,0.78472]
[1751613555589,3.2078,2547.9,2547.8,0.78472]
[1751613558494,3.2078,2547.9,2547.7,0.78473]
[1751613558688,8.82895583,2547.9,2547.2,2.0548]
[1751613558990,3.2078,2547.3,2547.2,0.7849]
[1751613559188,8.82895583,2547.3,2546.9,3.2078]
[1751613559390,8.82895583,2547.3,2547.2,0.7849]
[1751613559588,10.20295583,2547.3,2547.2,0.7849]
[1751613559784,3.2078,2547.3,2547.2,0.7849]
[1751613560995,3.2078,2547.6,2547.5,0.78481]
[1751613561391,3.2078,2547.6,2547.5,2.15591]
[1751613561587,3.2078,2547.6,2546.9,5.8119]
[1751613561792,3.2078,2547.3,2547.2,0.7849]
[1751613564502,3.2078,2547.3,2547.2,5.7849]
[1751613566588,3.2078,2547.7,2547.3,0.78487]
[1751613566794,3.2078,2547.7,2547.6,0.78478]
[1751613568591,3.2078,2547.7,2547.4,11.365]
[1751613568795,4.6141,2547.7,2547.6,0.78478]
[1751613570097,3.2078,2547.7,2547.6,0.78478]
[1751613572201,8.82895583,2547.7,2547.6,0.78478]
[1751613572696,8.82895583,2547.7,2547.2,11.365]
[1751613572901,3.2078,2547.4,2547.2,11.365]
[1751613573099,1.3794,2547.3,2547.2,12.1499]
[1751613573293,2.7074,2547.3,2547.2,0.7849]
[1751613573499,2.7074,2547.3,2546.7,11.365]
[1751613573700,3.2078,2547.1,2546.7,11.365]
[1751613574004,8.82895583,2546.8,2546.7,12.15006]
[1751613574305,3.2078,2546.8,2546.7,0.78506]
[1751613574906,3.2078,2546.8,2546.6,0.78508]
[1751613575098,7.65375583,2546.7,2546.1,11.365]
[1751613575400,3.2078,2546.2,2546.1,0.78524]
[1751613575798,3.2078,2546.5,2546.2,0.78521]
[1751613576101,0.6656,2546.7,2546.6,0.78509]
[1751613576300,3.2078,2546.9,2546.8,0.78503]
[1751613576701,8.82895583,2546.9,2546.2,3.2078]
[1751613577001,8.82895583,2546.9,2546.6,0.78507]
[1751613577002,1.9566,2546.8,2546.6,0.78507]
[1751613577305,1.9566,2546.8,2546.7,0.78506]
[1751613577906,0.6407,2546.8,2546.7,0.78506]
[1751613579703,3.2078,2546.9,2546.8,0.78503]
[1751613580902,4.5529,2546.9,2546.8,0.78503]
[1751613581806,3.2078,2546.9,2546.8,0.78503]
[1751613582003,0.6656,2547.1,2547.0,0.78497]
[1751613583504,6.28675583,2547.1,2547.0,0.78497]
[1751613583704,7.59815583,2547.1,2547.0,0.78497]
[1751613583906,0.6656,2547.1,2547.0,0.78497]
[1751613585601,3.2078,2547.2,2547.1,0.78493]
[1751613586802,4.6261,2547.2,2547.1,0.78493]
[1751613588513,3.2078,2547.2,2547.1,0.78493]
[1751613591522,4.5534,2547.2,2547.1,0.78493]
[1751613593124,3.2078,2547.2,2547.1,0.78493]
[1751613595726,8.82895583,2547.2,2547.1,0.78493]
[1751613596424,3.2078,2547.2,2547.1,0.78493]
[1751613597024,5.62115583,2547.7,2547.2,1.96227]
[1751613597322,3.9087,2547.5,2547.2,0.78488]
[1751613597527,5.62115583,2547.4,2547.2,0.78488]
[1751613597730,6.90655583,2547.4,2547.2,0.78488]
[1751613598027,6.90655583,2547.4,2546.9,56.527]
[1751613598220,6.90655583,2547.4,2547.3,0.78487]
[1751613598523,1.2854,2547.4,2547.3,0.78487]
[1751613600228,2.07024,2547.4,2547.3,0.78487]
[1751613600427,1.2854,2547.4,2547.3,0.78487]
[1751613600617,6.2854,2547.4,2547.0,0.78494]
[1751613600820,8.82895583,2547.1,2547.0,0.78494]
[1751613601424,8.82895583,2547.1,2545.9,5.35810791]
[1751613601425,15.88295583,2547.1,2545.9,5.35810791]
[1751613601726,3.2078,2546.3,2546.0,1.96319]
[1751613601922,3.2078,2546.3,2546.2,0.78521]
[1751613602222,16.96115583,2546.7,2546.0,1.96319]
[1751613602223,5.2213,2546.6,2546.0,1.96319]